Cogmind - Beta 14 @@@ ROGUE MODE // 2024.08.14 @ 20:30:47 Player: Cereal Killer Result: Destroyed by G-73 Enforcer with Phase Gun Performance ------------- Evolutions (7) 3500 Regions Visited (27) 5400 Robots Destroyed (240) 1200 Value Destroyed (11402) 11402 Prototype IDs (67) 1340 Alien Tech Used (2) 400 Bonus (12476) 12476 TOTAL SCORE: 35718 Bonus ------- Triggered Max Security 1000 High Alert Combat Kills 4042 Follower Combat Kills 1880 Network Hubs Disabled 400 Aligned with FarCom 300 Met Data Miner 300 Met Zhirov 300 Built Enhanced Grunts 300 Met R17 at Cetus 500 Met R17 at Research 2000 Met Sigix 2000 Friendly Fire -546 Cogmind --------- Core Integrity 0/1300 Matter 0/300 Energy 100/100 System Corruption 21% Temperature Cool (0) Movement Core (700) Ox13 Location -3/Quarantine Parts ------- > --- POWER (2) -------- (None) > --- PROPULSION (4) --- (None) > --- UTILITY (10) ----- High-capacity Storage Unit > --- WEAPON (5) ------- (None) > --- INVENTORY (20) --- Linear Accelerator Neutron Missile Launcher Fusion Bomb Launcher Sigix Containment Pod Peak State ------------ > --- POWER ------------ Improved Fusion Compressor Particle Reactor > --- PROPULSION ------- Enhanced Biometal Leg Enhanced Biometal Leg Enhanced Biometal Leg Enhanced Biometal Leg > --- UTILITY ---------- Advanced Cooling System High-capacity Storage Unit Advanced Energy Well Enhanced Optical Array Advanced Signal Interpreter Armor Integrity Analyzer Layered Medium Armor Plating Layered Medium Armor Plating Advanced Thermal Shield Advanced Force Field > --- WEAPON ----------- Advanced Variable Charge Gun Compact HERF Cannon Nova Cannon Neutron Missile Launcher Fusion Bomb Launcher > --- INVENTORY -------- Particle Reactor Improved Coolant Injector Improved Transmission Jammer Improved Transmission Jammer Experimental Phase Shifter Energy Mantle Dispersion Rifle Matter Neutralizer Linear Accelerator Phasing Sabre Sigix Containment Pod [Rating: 154] Favorites ----------- Power Neutrino Core Engine Heavy Ion Engine Power Core Neutrino Core Reactor Antimatter Reactor Propulsion Enhanced Biometal Leg Treads Centrium Heavy Treads Leg Enhanced Biometal Leg Wheel Wheel Utility Large Storage Unit Device Structural Scanner Storage Large Storage Unit Processor Advanced Signal Interpreter Hackware Hacking Suite Protection Centrium Medium Armor Plating Weapon Magnetic Acceleration Cannon Energy Gun Dispersion Rifle Energy Cannon Long-range Proton Cannon Ballistic Gun Advanced KE Penetrator Ballistic Cannon Magnetic Acceleration Cannon Launcher Neutron Missile Launcher Special Weapon Remote Datajack Impact Weapon Flail Slashing Weapon Phasing Sabre Piercing Weapon Spear Build | -11 -10 -10 -9 -9 -9 -8 -8 -8 -8 -8 -6 -6 -6 -6 -5 -5 -5 -5 -5 -4 -4 -4 -4 -4 -4 -3 -3 ------- Run | Yrd Mat Min Mat Min Exi Min Mat Sto Rec Scr Fac Low Low Dat Pro Fac Upp Upp Zhi Pro Fac Ext Cet Arc Hub Res Qua Slots Evolved 14 | . . . 2 . . . 2 . . . 4 . . . . 2 . . . . 2 . . . . 2 . Power 1 | . . . . . . . . . . . 1 . . . . . . . . . . . . . . . . Propulsion 2 | . . . . . . . . . . . . . . . . . . . . . . . . . . 2 . Utility 8 | . . . 2 . . . 1 . . . 2 . . . . 1 . . . . 2 . . . . . . Weapon 3 | . . . . . . . 1 . . . 1 . . . . 1 . . . . . . . . . . . Parts Attached 313 | 7 4 . 6 14 4 . 9 10 2 . 11 1 6 3 19 6 2 35 5 13 18 30 11 1 55 20 21 Power 37 | 1 2 . 1 4 . . 1 2 . . 1 . 1 . 1 1 . 3 1 . 1 7 . . 5 3 2 Engine 11 | 1 2 . . 3 . . . 2 . . 1 . 1 . . 1 . . . . . . . . . . . Core 14 | . . . 1 1 . . 1 . . . . . . . 1 . . 2 . . 1 3 . . 3 . 1 Reactor 12 | . . . . . . . . . . . . . . . . . . 1 1 . . 4 . . 2 3 1 Propulsion 29 | 2 . . 1 . 2 . . 3 1 . 1 . . . 2 1 . 4 . . 2 1 1 . 4 4 . Treads 5 | . . . . . . . . 1 . . . . . . . . . 1 . . . . 1 . 2 . . Leg 9 | . . . . . . . . . . . . . . . . . . . . . 2 1 . . 2 4 . Wheel 15 | 2 . . 1 . 2 . . 2 1 . 1 . . . 2 1 . 3 . . . . . . . . . Hover . | . . . . . . . . . . . . . . . . . . . . . . . . . . . . Flight . | . . . . . . . . . . . . . . . . . . . . . . . . . . . . Utility 114 | 2 1 . 2 4 2 . 3 1 . . 2 1 1 . 5 2 1 14 4 5 7 9 4 . 26 8 10 Device 69 | 1 . . 1 . . . 2 . . . 1 1 1 . 3 2 1 9 4 4 6 8 1 . 15 3 6 Storage 8 | 1 1 . . . 2 . . . . . . . . . . . . . . . . . . . 2 1 1 Processor 10 | . . . 1 2 . . . . . . . . . . 1 . . 2 . 1 . . . . 1 1 1 Hackware 3 | . . . . . . . 1 . . . 1 . . . . . . . . . . . . . . 1 . Protection 24 | . . . . 2 . . . 1 . . . . . . 1 . . 3 . . 1 1 3 . 8 2 2 Artifact . | . . . . . . . . . . . . . . . . . . . . . . . . . . . . Weapon 133 | 2 1 . 2 6 . . 5 4 1 . 7 . 4 3 11 2 1 14 . 8 8 13 6 1 20 5 9 Energy Gun 27 | 1 . . . 1 . . 2 . . . . . 1 . 3 1 . 4 . 2 2 3 . . 3 2 2 Energy Cannon 31 | . . . . . . . 1 . 1 . . . . . 3 1 . 2 . 4 2 3 2 . 8 2 2 Ballistic Gun 24 | 1 1 . . . . . . 2 . . 2 . 1 1 2 . . 1 . 1 2 3 3 1 3 . . Ballistic Cannon 24 | . . . 2 2 . . . 1 . . 4 . . 2 2 . . . . . 2 4 . . 3 . 2 Launcher 9 | . . . . 2 . . 1 1 . . . . 1 . 1 . . . . . . . . . . 1 2 Special Weapon 10 | . . . . 1 . . . . . . . . 1 . . . . 6 . . . . 1 . 1 . . Impact Weapon 1 | . . . . . . . . . . . . . . . . . . . . 1 . . . . . . . Slashing Weapon 5 | . . . . . . . . . . . . . . . . . 1 1 . . . . . . 2 . 1 Piercing Weapon 2 | . . . . . . . 1 . . . 1 . . . . . . . . . . . . . . . . Special Melee Weapon . | . . . . . . . . . . . . . . . . . . . . . . . . . . . . Unidentified Prototypes 17 | . . . . . . . . 4 . . . . . . . . . . 3 . . . 3 . 5 1 1 Parts Lost 107 | . 1 . 1 11 . . . 1 . . . 1 2 . 10 . 1 12 . 11 3 7 . . 22 1 23 Power 17 | . 1 . . 4 . . . . . . . . 1 . 2 . . 2 . 1 . . . . 3 . 3 Propulsion 11 | . . . 1 2 . . . 1 . . . . . . 2 . . 1 . 2 . . . . 1 . 1 Utility 37 | . . . . 3 . . . . . . . 1 1 . 2 . . 3 . 2 1 4 . . 7 1 12 Weapon 42 | . . . . 2 . . . . . . . . . . 4 . 1 6 . 6 2 3 . . 11 . 7 Highest Loss Streak 16 | . 1 . 1 5 . . . 1 . . . 1 1 . 7 . 1 5 . 9 3 4 . . 4 1 16 To Critical Strikes 2 | . . . . . . . . . . . . . . . . . . . . . . . . . 2 . . Average Slot Usage (%) 88 | . 97 100 96 71 33 44 78 98 98 72 95 99 99 80 78 85 93 93 99 65 87 97 85 89 86 96 74 Engine 4 | . 11 14 . 2 . . . 6 9 9 13 13 12 13 1 4 5 5 3 . . . . . . . . Core 2 | . . . 10 4 . . 5 2 . . . . . . 3 5 5 2 5 . 2 6 . . 2 3 . Reactor 2 | . . . . . . . . . . . . . . . . . . 1 1 5 5 3 10 10 6 4 5 Treads 1 | . . . . . . . . 2 . . . . . . . . . 4 5 . . . 4 5 4 . . Leg 3 | . . . . . . . . . . . . . . . . . . . . . 4 10 . . . 18 15 Wheel 7 | . 28 28 18 13 16 22 18 14 18 18 13 13 13 13 6 7 11 4 5 . . . . . . . . Device 17 | . 14 14 22 14 . . 11 11 9 9 11 12 19 20 14 17 17 18 22 18 23 22 24 21 22 19 6 Storage 6 | . 14 14 11 8 5 11 9 9 9 9 6 6 6 6 6 5 5 5 5 5 5 5 5 5 5 4 8 Processor 9 | . . . 10 10 11 11 9 9 9 9 6 6 6 6 6 5 5 10 11 12 15 15 15 15 10 13 15 Hackware 4 | . . . . . . . 6 9 9 9 12 13 13 13 7 5 5 5 5 5 5 3 . . . . . Protection 4 | . . . . 1 . . . 6 9 9 6 6 . . 4 5 5 2 . . 1 4 6 10 11 4 3 Energy Gun 4 | . 4 . . . . . 10 . . . . . 1 . 8 7 11 5 . 3 8 12 . . 2 5 5 Energy Cannon 2 | . . . . . . . 3 9 8 . . . . . . 4 5 . . 3 2 . 8 5 3 5 6 Ballistic Gun 4 | . 23 28 . . . . . 12 16 . 6 . 1 . 4 5 4 4 5 1 4 4 5 13 5 1 . Ballistic Cannon 4 | . . . 21 13 . . . 2 . . 12 20 16 . 4 5 5 . . . 2 5 . . 3 4 . Special Weapon 1 | . . . . 1 . . . . . . . . . . . . . 10 23 . . . 1 1 . . . Piercing Weapon 1 | . . . . . . . 1 3 . . 4 6 6 6 5 . . . . . . . . . . . . Peak Build Rating 154 | 9 10 12 21 21 8 7 29 32 32 22 49 49 52 52 70 71 71 88 78 74 107 114 132 133 148 153 154 Average Rating 73 | 4 8 11 20 14 5 7 19 31 31 22 45 48 50 39 52 67 70 70 72 51 86 107 128 132 128 142 114 On Entrance 54 | . 9 10 12 21 2 7 7 29 32 22 22 49 48 52 52 56 71 71 72 74 60 107 112 129 133 116 147 Naked Turns 39 | . . . . 39 . . . . . . . . . . . . . . . . . . . . . . . Heaviest Build 155 | 12 28 28 41 41 20 20 39 49 49 36 71 71 71 66 91 95 96 96 63 62 90 105 111 101 145 155 155 Greatest Support 120 | 26 26 26 26 20 20 20 20 26 32 32 32 28 28 28 28 22 22 22 19 19 59 50 80 80 80 120 120 Greatest Overweight (x) 9 | . 1 1 4 9 . . 1 4 1 1 2 2 2 2 7 7 4 9 6 4 5 2 2 1 1 1 1 Average Overweight (x) 2 | . . 1 1 . . . . 1 1 1 1 2 1 1 4 5 4 6 5 3 2 1 1 1 1 . . Largest Inventory Capacity 20 | 8 15 15 15 15 15 15 15 15 15 15 15 15 15 15 15 15 15 15 15 15 15 15 15 15 20 20 20 Average Capacity 15 | 6 14 15 15 12 8 15 15 15 15 15 15 15 15 15 15 15 15 15 15 15 15 15 15 15 18 20 20 Most Carried 20 | 5 10 15 15 15 9 11 15 15 15 15 15 15 15 15 15 15 15 15 15 15 15 15 15 15 20 20 20 Average Carried 14 | 2 6 14 13 11 6 10 14 14 14 14 14 15 14 15 14 14 14 14 14 13 14 14 14 15 17 19 14 Final Capacity 20 | 8 15 15 15 5 15 15 15 15 15 15 15 15 15 15 15 15 15 15 15 15 15 15 15 15 20 20 20 Final Carried 20 | 3 10 15 14 5 9 11 15 15 15 15 15 15 15 15 15 15 15 15 15 15 15 15 15 15 20 20 5 Class Distribution -------------------- 17% | Mutant 14% | Scavenger-Tank 8% | Commander-Skirmisher 7% | Scavenger-Skirmisher 7% | Hacker-Tank 5% | Hacker-Skirmisher 5% | Skirmisher 4% | Infiltrator-Skirmisher 4% | Scavenger-Assassin 4% | Scavenger-Gunner 4% | Derelict-Gunner 3% | Tank Dominant Class ---------------- Mutant | -10/Materials Mutant | -10/Mines Mutant | -9/Materials Mutant | -9/Mines Mutant | -9/Exiles Mutant | -8/Mines Skirmisher | -8/Materials Skirmisher | -8/Storage Skirmisher | -8/Recycling Mutant | -8/Scraptown Hacker-Skirmisher | -6/Factory Hacker-Tank | -6/Lower Caves Hacker-Tank | -6/Lower Caves Hacker-Mutant | -6/Data Miner Tank | -5/Proximity Caves Infiltrator-Skirmisher | -5/Factory Infiltrator-Tank | -5/Upper Caves Scavenger-Gunner | -5/Upper Caves Derelict-Gunner | -5/Zhirov Mutant | -4/Proximity Caves Derelict-Assassin | -4/Factory Scavenger-Skirmisher | -4/Extension Commander-Skirmisher | -4/Cetus Commander-Skirmisher | -4/Archives Scavenger-Tank | -4/Hub_04(d) Scavenger-Tank | -3/Research Scavenger-Tank | -3/Quarantine Resources | -11 -10 -10 -9 -9 -9 -8 -8 -8 -8 -8 -6 -6 -6 -6 -5 -5 -5 -5 -5 -4 -4 -4 -4 -4 -4 -3 -3 ----------- Run | Yrd Mat Min Mat Min Exi Min Mat Sto Rec Scr Fac Low Low Dat Pro Fac Upp Upp Zhi Pro Fac Ext Cet Arc Hub Res Qua Matter Collected 7478 | 180 188 48 142 548 40 10 80 185 . 51 266 123 201 . 407 95 158 771 60 100 148 721 172 10 2324 327 123 Remotely . | . . . . . . . . . . . . . . . . . . . . . . . . . . . . Salvage Created 11754 | 15 259 . 160 111 . . 102 488 . . 243 145 281 . 880 85 175 1196 . 636 214 1389 174 . 3733 477 991 Parts 420 | 2 24 . 13 14 . . 7 26 . . 25 14 23 . 15 3 9 28 . 3 10 43 7 . 108 18 28 Haulers Intercepted 10 | . 1 . 1 . . . . 2 . . . . . . . . . . . . . . . . 3 2 1 Recyclers Shooed 7 | . 2 . 1 . . . 1 2 . . 1 . . . . . . . . . . . . . . . . Parts Field Recycled . | . . . . . . . . . . . . . . . . . . . . . . . . . . . . Retrieved Matter . | . . . . . . . . . . . . . . . . . . . . . . . . . . . . Parts Self-Destructed 61 | . . . . . . . . . . . . 13 11 . 9 . 6 20 . 2 . . . . . . . Prevented 15 | . . . . . . . . . . . . . 10 . . . 1 3 . 1 . . . . . . . Kills | -11 -10 -10 -9 -9 -9 -8 -8 -8 -8 -8 -6 -6 -6 -6 -5 -5 -5 -5 -5 -4 -4 -4 -4 -4 -4 -3 -3 ------- Run | Yrd Mat Min Mat Min Exi Min Mat Sto Rec Scr Fac Low Low Dat Pro Fac Upp Upp Zhi Pro Fac Ext Cet Arc Hub Res Qua Combat Hostiles Destroyed 202 | . 7 . 5 14 . . 2 4 . . 4 5 10 . 15 1 3 21 . 8 3 25 2 . 50 4 19 Melee 7 | . . . . . . . . . . . 1 3 . . . . . . . . . . . . 2 . 1 Guns 63 | . 7 . . . . . 1 1 . . . . . . 2 1 2 11 . 2 1 14 . . 16 2 3 Cannons 69 | . . . 5 11 . . 1 3 . . 3 2 5 . 3 . 1 4 . 1 1 1 . . 20 1 7 AOE 33 | . . . . 3 . . . . . . . . 5 . 2 . . 2 . 1 1 7 . . 5 . 7 Classes Destroyed 21 | 1 4 . 3 1 . . 1 . . . 2 . . . 1 . 1 . . 1 . 1 . . 5 . . Worker 9 | . . . . . . . . . . . 3 . . . . . . . . . . . . . 6 . . Builder 4 | . . . 1 . . . . . . . 1 . . . . 1 . . . . . . . . 1 . . Tunneler 3 | 1 . . . . . . . . . . . . . . . 1 . . . . . . . . 1 . . Hauler 10 | . 1 . 1 . . . . 2 . . . . . . . . . . . . . . . . 3 2 1 Recycler 6 | . . . 1 . . . . 2 . . . . . . . . . . . . . 1 . . 2 . . Minesweeper 1 | . . . . . . . . . . . . . . . . . . . . 1 . . . . . . . Mechanic 1 | . . . . . . . . . . . . . . . . . . . . . . . . . 1 . . Operator 2 | . . . . . . . . . . . . . . . . . . . . . . . . . 2 . . Watcher 8 | . 1 . . . . . . 1 . . 1 . . . . 1 . . . . . . 1 . 2 . 1 Swarmer 44 | . 4 . 4 6 . . . . . . 2 3 6 . . . . 2 . . . 12 . . 5 . . Saboteur 4 | . . . . . . . . . . . . . . . . . . . . . . . . . 1 . 3 Grunt 78 | . 3 . . . . . . . . . . . 4 . 12 1 2 12 . 5 . 6 . . 23 2 8 Brawler 7 | . . . . . . . . . . . . . . . 1 . . 2 . . . 1 . . . . 3 Duelist 10 | . . . . . . . . . . . . . . . . . 1 1 . 1 . . . . 3 . 4 Protector 2 | . . . . . . . . . . . . . . . . . . . . . . . . . 1 . 1 Sentry 17 | . . . 1 . . . . 4 . . 1 . . . 1 . . 2 . . 1 3 . . 2 2 . Hunter 12 | . . . . . . . 2 . . . . . . . . . . . . 2 2 . . . 6 . . Programmer 11 | . . . . . . . . . . . 1 2 . . 1 . . 2 . . . . . . 5 . . Heavy 1 | . . . . . . . . . . . . . . . . . . . . . . . . . 1 . . Behemoth 2 | . . . . . . . . . . . . . . . . . . . . . . 2 . . . . . Cetus Guard 2 | . . . . . . . . . . . . . . . . . . . . . . . 2 . . . . Lightning 3 | . . . . . . . . . . . . . . . . . . . . . . . . . 3 . . Packrat 1 | . . . . . . . . . . . . . . . . . . . . 1 . . . . . . . Assembled 8 | . . . . 8 . . . . . . . . . . . . . . . . . . . . . . . Thug 1 | . . . . . . . . . . . . . . . . . . . . . . . . . 1 . . Butcher 1 | . . . . . . . . . . . . . . . . . . . . . . 1 . . . . . Guerrilla 1 | . . . . . . . . . . . . . . . . . . . . . . . . . 1 . . Best Kill Streak 19 | 1 3 . 5 6 . . 2 3 . . 3 2 7 . 5 2 2 4 . 3 1 10 2 . 19 2 15 Combat Bots Only 15 | . 3 . 4 6 . . 2 1 . . 2 2 7 . 5 1 2 4 . 3 1 10 1 . 14 2 15 Max Kills in Single Turn 6 | 1 1 . 1 2 . . 1 1 . . 1 1 3 . 3 1 1 2 . 2 1 2 1 . 6 2 4 Gunslinging 1 | . . . . . . . . . . . . . . . . . . 1 . . . . . . 1 . . Exploded 4 | . . . . 2 . . . . . . . . 3 . 2 . . 1 . 1 1 2 . . 2 . 4 Melee 1 | . . . . . . . . . . . 1 1 . . . . . . . . . . . . 1 . 1 Uniques/NPCs Destroyed . | . . . . . . . . . . . . . . . . . . . . . . . . . . . . Combat | -11 -10 -10 -9 -9 -9 -8 -8 -8 -8 -8 -6 -6 -6 -6 -5 -5 -5 -5 -5 -4 -4 -4 -4 -4 -4 -3 -3 -------- Run | Yrd Mat Min Mat Min Exi Min Mat Sto Rec Scr Fac Low Low Dat Pro Fac Upp Upp Zhi Pro Fac Ext Cet Arc Hub Res Qua Hostile Shots Fired 1427 | . 46 . 26 97 . . 4 14 . . 11 18 33 . 85 3 15 125 . 59 40 71 8 2 480 14 276 Missed 356 | . 6 . 8 25 . . . 4 . . 4 5 10 . 22 . 2 40 . 11 17 21 1 1 117 5 57 Damage Taken 21150 | . 474 . 203 1188 . . 68 198 . . 86 197 340 . 1198 76 307 1784 . 1054 622 1103 133 29 7211 338 4541 Core 3147 | . 237 . 79 296 . . 20 28 . . . . . . 147 19 . 181 . 271 87 33 9 . 421 13 1306 Absorbed by Shields 617 | . . . . . . . . . . . . . 108 . 55 . . . . . . 46 29 . . 125 254 Reduced by Siege Mode 94 | . . . . . . . . . . . . . . . . . . . . . . . . . 94 . . Ignored by Resistances 1181 | . . . . . . . . . . . . . . . . . . 23 . 31 11 85 48 . 862 9 112 Core Remaining (%) 54 | 100 . 5 . . . 6 . . . 91 . . . . 82 . . . . 52 . . . . 45 . . Volleys Fired 520 | 4 34 . 15 34 . . 4 14 . . 14 4 11 . 34 9 10 53 . 19 7 39 5 . 135 12 63 Largest 5 | 2 2 . 2 2 . . 3 3 . . 3 3 3 . 3 4 4 4 . 4 4 5 3 . 4 4 5 Hottest 512 | 70 70 . 88 100 . . 172 113 . . 159 159 159 . 307 225 282 315 . 315 307 492 421 . 368 333 512 Shots Fired 1279 | 8 68 . 30 53 . . 12 39 1 . 42 12 24 . 54 31 36 93 . 46 18 148 10 . 378 30 146 Gun 611 | 8 68 . . 2 . . 8 23 1 . 22 . . . 20 20 20 60 . 22 11 104 . . 163 6 53 Cannon 624 | . . . 30 38 . . 4 16 . . 20 12 18 . 32 11 16 23 . 16 7 44 10 . 214 24 89 Launcher 18 | . . . . 8 . . . . . . . . 4 . 2 . . . . . . . . . . . 4 Special 26 | . . . . 5 . . . . . . . . 2 . . . . 10 . 8 . . . . 1 . . Kinetic 681 | 4 56 . 30 38 . . . 25 1 . 42 12 18 . 33 18 10 36 . 9 8 62 4 . 251 12 12 Thermal 465 | 4 12 . . 7 . . 12 14 . . . . . . 19 11 20 49 . 37 10 86 3 . 69 6 106 Explosive 4 | . . . . . . . . . . . . . . . . . . . . . . . . . . . 4 Electromagnetic 123 | . . . . 8 . . . . . . . . 4 . 2 2 6 5 . . . . 3 . 57 12 24 Robot Hit Streak 24 | 3 7 . 8 7 . . 11 13 . . 4 5 8 . 10 11 7 13 . 22 5 10 4 . 20 6 24 Robot Miss Streak 13 | 1 6 . 11 13 . . . 2 1 . 8 1 3 . 6 6 4 3 . 3 4 9 2 . 7 3 3 Penetration Max 1 | . . . . . . . . . . . . . . . . . . . . . . . . . 1 . . Secondary Targets 6 | . 1 . . . . . . . . . . . . . . . . 3 . . . . . . 2 . . Max Gunslinging Chain 1 | . 1 . . . . . . . . . . . . . . . . 1 . . . . . . 1 . . Shots Hit Robots 843 | 6 39 . 23 30 . . 10 24 . . 23 10 13 . 33 14 16 69 . 35 9 78 7 . 264 24 116 Core Hits 567 | 2 18 . 21 36 . . 5 10 . . 10 4 15 . 36 8 8 45 . 21 9 55 20 . 153 13 78 Critical Kills 9 | . . . . . . . . . . . . . . . . . . . . . 1 5 . . 3 . . Critical Parts Destroyed 16 | . . . . . . . . . . . . . . . . . . . . . . 10 2 . 4 . . Critical Strikes 78 | . 2 . . . . . . . . . 1 1 2 . 2 . 1 5 . 3 1 20 2 . 34 3 1 Burn 15 | . 2 . . . . . . . . . . . . . . . 1 3 . 3 . 4 . . 2 . . Destroy 27 | . . . . . . . . . . . . . . . . . . . . . 1 16 2 . 8 . . Blast 29 | . . . . . . . . . . . . . 2 . 2 . . 2 . . . . . . 20 2 1 Corrupt 1 | . . . . . . . . . . . . . . . . . . . . . . . . . 1 . . Sever 4 | . . . . . . . . . . . . . . . . . . . . . . . . . 3 1 . Impale 2 | . . . . . . . . . . . 1 1 . . . . . . . . . . . . . . . Melee Attacks 71 | . . . . . . . 4 5 . . 8 6 . . . . . . . 1 . . . . 21 5 21 Impact 1 | . . . . . . . . . . . . . . . . . . . . 1 . . . . . . . Slashing 47 | . . . . . . . . . . . . . . . . . . . . . . . . . 21 5 21 Piercing 23 | . . . . . . . 4 5 . . 8 6 . . . . . . . . . . . . . . . Sneak Attacks 13 | . . . . . . . . 3 . . 6 . . . . . . . . 1 . . . . . 3 . Combat Hostiles . | . . . . . . . . . . . . . . . . . . . . . . . . . . . . Follow-up Attacks . | . . . . . . . . . . . . . . . . . . . . . . . . . . . . Damage Inflicted 31794 | 63 423 . 377 663 . . 190 636 . . 796 340 954 . 1602 366 420 1892 . 1134 242 2409 648 . 10730 1104 6805 Guns 8476 | 63 423 . . . . . 100 210 . . 209 . . . 287 103 248 963 . 391 100 1414 . . 2778 70 1117 Cannons 12645 | . . . 377 398 . . 90 222 . . 232 183 320 . 559 238 172 593 . 303 65 461 213 . 4911 686 2622 Explosions 8316 | . . . . 265 . . . . . . . . 634 . 756 25 . 293 . 262 77 534 435 . 2406 . 2629 Melee 2222 | . . . . . . . . 204 . . 355 157 . . . . . . . 86 . . . . 635 348 437 Ramming . | . . . . . . . . . . . . . . . . . . . . . . . . . . . . Kinetic 11478 | 13 305 . 377 398 . . . 210 . . 441 183 320 . 544 281 99 769 . 201 80 696 33 . 5861 336 331 Thermal 11569 | 50 118 . . 56 . . 190 222 . . . . 274 . 998 47 248 1014 . 847 162 1713 526 . 2275 204 2625 Explosive 2629 | . . . . . . . . . . . . . . . . . . . . . . . . . . . 2629 Electromagnetic 3896 | . . . . 209 . . . . . . . . 360 . 60 38 73 109 . . . . 89 . 1959 216 783 Impact 86 | . . . . . . . . . . . . . . . . . . . . 86 . . . . . . . Slashing 1420 | . . . . . . . . . . . . . . . . . . . . . . . . . 635 348 437 Piercing 716 | . . . . . . . . 204 . . 355 157 . . . . . . . . . . . . . . . Highest Corruption 21 | . . . . 1 1 1 . 1 1 1 . 1 1 1 3 . . . . . 5 5 . . 15 . 21 Average Corruption 4 | . . . . 1 1 1 . 1 1 1 . 1 1 1 2 . . . . . 2 3 . . 11 . 10 Corruption Purged 5 | . . . . . . . . . . . . . . . . . . . . . . 5 . . . . . Corruption Blocked 12 | . . . . . . . . . . . . . . . . . . . . . . . . . 1 11 . Effects 132 | . . . . . 4 2 . 1 5 6 . 1 7 1 14 . . . . . . 3 . . 69 . 19 Message Errors 30 | . . . . . 2 1 . . 1 2 . 1 . 1 2 . . . . . . 1 . . 16 . 3 Matter Fused 19 | . . . . . . . . . . 1 . . 2 . 4 . . . . . . . . . 8 . 4 Heat Flow Errors 23 | . . . . . . . . . 2 1 . . 2 . 5 . . . . . . . . . 11 . 2 Energy Discharges 11 | . . . . . . . . . . . . . 2 . 2 . . . . . . . . . 6 . 1 Parts Rejected 4 | . . . . . . . . . . . . . . . . . . . . . . . . . 3 . 1 Parts Fused 1 | . . . . . . . . . 1 . . . . . . . . . . . . . . . . . . Data Loss (minor) 18 | . . . . . 1 . . . . 2 . . 1 . 1 . . . . . . 1 . . 9 . 3 Data Loss (major) 5 | . . . . . 1 1 . 1 . . . . . . . . . . . . . 1 . . . . 1 Misfires 5 | . . . . . . . . . 1 . . . . . . . . . . . . . . . 4 . . Alerts 5 | . . . . . . . . . . . . . . . . . . . . . . . . . 4 . 1 Weapon Failures 11 | . . . . . . . . . . . . . . . . . . . . . . . . . 8 . 3 Overload Shots 4 | . . . . . . . . . . . . . . . . . . . . . . . . . . . 4 Overflow Damage 533 | . . . . 43 . . . 46 . . 50 37 3 . 12 10 . 24 . 9 . . . . 216 . 83 Projectiles 231 | . . . . . . . . . . . . . 3 . 12 10 . 24 . . . . . . 165 . 17 Explosions 169 | . . . . 43 . . . . . . . . . . . . . . . 9 . . . . 51 . 66 Melee 133 | . . . . . . . . 46 . . 50 37 . . . . . . . . . . . . . . . Knockbacks 78 | . . . 16 9 . . . . . . 2 1 5 . 2 2 1 4 . . . 5 . . 28 . 3 Impact . | . . . . . . . . . . . . . . . . . . . . . . . . . . . . Kinetic 75 | . . . 15 9 . . . . . . 2 1 5 . 2 2 1 4 . . . 5 . . 27 . 2 Secondary 3 | . . . 1 . . . . . . . . . . . . . . . . . . . . . 1 . 1 Self-Inflicted Damage 781 | . . . . 217 . . . . . . . . 84 . 5 19 . 9 . . . . . . 194 . 253 Shots 22 | . . . . 10 . . . . . . . . 3 . 2 1 . 1 . . . . . . 2 . 3 Rammed 1 | . . . . . . . . . . . . . . . . . . . . . . . . . . . 1 Targets Rammed 1 | . . . . . . . . . . . . . . . . . . . . . . . . . . . 1 Kicked . | . . . . . . . . . . . . . . . . . . . . . . . . . . . . Crushed . | . . . . . . . . . . . . . . . . . . . . . . . . . . . . Highest Temperature 578 | 80 234 . 25 302 . . 198 334 212 102 97 84 239 . 385 193 578 205 . 301 181 284 150 . 413 305 221 Average Temperature 105 | 48 107 . 8 137 . . 100 101 113 58 29 44 84 . 103 94 192 79 . 125 85 114 62 . 124 135 62 Received Heat Transfer 3849 | . 96 . 63 260 . . . 54 . . . . 67 . 378 45 90 549 . 271 36 184 9 . 1206 6 535 Effects 9 | . . . . . . . . . . . . . . . 1 . 8 . . . . . . . . . . Shutdowns 2 | . . . . . . . . . . . . . . . . . 2 . . . . . . . . . . Energy Bleed 3 | . . . . . . . . . . . . . . . 1 . 2 . . . . . . . . . . Interference 3 | . . . . . . . . . . . . . . . . . 3 . . . . . . . . . . Damage (minor) 1 | . . . . . . . . . . . . . . . . . 1 . . . . . . . . . . Siege Activations 7 | . . . . . . . . . . . . . . . . . . . . . . . . . 7 . . Total Turns 142 | . . . . . . . . . . . . . . . . . . . . . . . . . 142 . . Longest Duration 31 | . . . . . . . . . . . . . . . . . . . . . . . . . 31 . . Robots Corrupted 5 | . . . . . . . . . . . . . . . . . . . . . . . . . 3 1 1 Combat Hostiles 3 | . . . . . . . . . . . . . . . . . . . . . . . . . 1 1 1 Parts Fried 19 | . . . . . . . . . . . . . . . . . . . . 1 . . . . 14 1 3 Impact Corruptions . | . . . . . . . . . . . . . . . . . . . . . . . . . . . . Robots Melted 31 | . . . . . . . . . . . . . . . 8 . . 4 . 5 . 3 3 . 8 . . Combat Hostiles 26 | . . . . . . . . . . . . . . . 8 . . 4 . 4 . 3 2 . 5 . . Parts Melted 112 | . 1 . . . . . 1 . . . . . . . 20 . . 10 . 23 2 12 5 . 38 . . Heat Transferred 34534 | 148 481 . . 50 . . 407 333 . . . . 450 . 4612 100 635 3740 . 3391 444 5714 2920 . 9399 185 1525 Parts Sabotaged 5 | . . . . . . . . . . . . . . . . . . . . . . . . . 2 . 3 Parts Stolen . | . . . . . . . . . . . . . . . . . . . . . . . . . . . . Parts Stripped . | . . . . . . . . . . . . . . . . . . . . . . . . . . . . Power Chain Reactions 6 | . . . . 2 . . . . . . . . 2 . 1 1 . . . . . . . . . . . Alert | -11 -10 -10 -9 -9 -9 -8 -8 -8 -8 -8 -6 -6 -6 -6 -5 -5 -5 -5 -5 -4 -4 -4 -4 -4 -4 -3 -3 ------- Run | Yrd Mat Min Mat Min Exi Min Mat Sto Rec Scr Fac Low Low Dat Pro Fac Upp Upp Zhi Pro Fac Ext Cet Arc Hub Res Qua Peak Influence 2001 | 5 271 105 234 251 . . 108 196 66 . 194 . . . . 111 . . . . 65 746 584 425 2001 1062 1890 Initial 1050 | . 3 105 40 91 . . . 45 37 . . . . . . 56 . . . . . 31 417 205 148 1050 461 Average 486 | . 111 105 133 140 . . 28 109 43 . 59 . . . . 46 . . . . 31 355 529 381 1257 918 1739 Maximum Alert Level 5 | . 1 . 1 1 . . . . . . . . . . . . . . . . . 3 2 2 5 3 5 Low Security (%) 49 | 100 85 100 74 73 . 100 100 100 100 . 100 . . . . 100 . . . . 100 32 . . 1 . . Level 1 8 | . 14 . 25 26 . . . . . . . . . . . . . . . . . 29 10 29 4 . . Level 2 11 | . . . . . . . . . . . . . . . . . . . . . . 25 89 70 4 . . Level 3 13 | . . . . . . . . . . . . . . . . . . . . . . 12 . . 5 100 . Level 4 10 | . . . . . . . . . . . . . . . . . . . . . . . . . 72 . . Level 5 1 | . . . . . . . . . . . . . . . . . . . . . . . . . 12 . . High Security . | . . . . . . . . . . . . . . . . . . . . . . . . . . . . Max Security 3 | . . . . . . . . . . . . . . . . . . . . . . . . . . . 99 Squads Dispatched 50 | . 1 . 1 . . . . . . . 2 . . . . 1 . . . . 2 . . . 19 4 20 Investigation 6 | . 1 . 1 . . . . . . . 1 . . . . . . . . . . . . . 1 2 . Extermination 6 | . . . . . . . . . . . 1 . . . . 1 . . . . 1 . . . 3 . . Reinforcement 11 | . . . . . . . . . . . . . . . . . . . . . 1 . . . 8 2 . Assault 24 | . . . . . . . . . . . . . . . . . . . . . . . . . 4 . 20 Garrison 3 | . . . . . . . . . . . . . . . . . . . . . . . . . 3 . . Intercept . | . . . . . . . . . . . . . . . . . . . . . . . . . . . . Searches Triggered . | . . . . . . . . . . . . . . . . . . . . . . . . . . . . Construction Impeded 2 | . . . . . . . . . . . . . . . . . . . . . . . . . 2 . . Haulers Reinforced 1 | . . . . . . . . . . . . . . . . . . . . . . . . . . 1 . Active Scanning Responses . | . . . . . . . . . . . . . . . . . . . . . . . . . . . . Cargo Convoy Interrupts . | . . . . . . . . . . . . . . . . . . . . . . . . . . . . Stealth | -11 -10 -10 -9 -9 -9 -8 -8 -8 -8 -8 -6 -6 -6 -6 -5 -5 -5 -5 -5 -4 -4 -4 -4 -4 -4 -3 -3 --------- Run | Yrd Mat Min Mat Min Exi Min Mat Sto Rec Scr Fac Low Low Dat Pro Fac Upp Upp Zhi Pro Fac Ext Cet Arc Hub Res Qua Distress Signals 12 | . 1 . . . . . . . . . . . . . . . . . . . . 1 2 . 5 3 . Communications Jammed 42 | . . . . . . . 2 14 . . . . . . . . . . . . . 2 3 . 15 . 6 Distress Signals 37 | . . . . . . . . 14 . . . . . . . . . . . . . 2 3 . 12 . 6 Times Spotted 370 | . 14 . 5 24 . . 3 5 . . 9 8 10 . 16 2 3 21 . 7 7 42 10 2 79 8 95 Peak Tracking Total 61 | . 5 . 5 5 . . 1 2 . . 3 3 7 . 6 1 2 5 . 3 2 10 5 1 9 2 61 Tactical Retreats 10 | . 1 . 1 1 . . . . . . 1 . . . 1 . . . . . . 1 . . 4 . . Traps | -11 -10 -10 -9 -9 -9 -8 -8 -8 -8 -8 -6 -6 -6 -6 -5 -5 -5 -5 -5 -4 -4 -4 -4 -4 -4 -3 -3 ------- Run | Yrd Mat Min Mat Min Exi Min Mat Sto Rec Scr Fac Low Low Dat Pro Fac Upp Upp Zhi Pro Fac Ext Cet Arc Hub Res Qua Traps Triggered 11 | . 1 . . . . . . 2 . . . . . . . . . . . . 2 2 . . . 2 2 Indirectly . | . . . . . . . . . . . . . . . . . . . . . . . . . . . . Trap Hack Attempts . | . . . . . . . . . . . . . . . . . . . . . . . . . . . . Triggered . | . . . . . . . . . . . . . . . . . . . . . . . . . . . . Disarmed . | . . . . . . . . . . . . . . . . . . . . . . . . . . . . Reprogrammed . | . . . . . . . . . . . . . . . . . . . . . . . . . . . . Reused . | . . . . . . . . . . . . . . . . . . . . . . . . . . . . Traps Extracted . | . . . . . . . . . . . . . . . . . . . . . . . . . . . . Installed . | . . . . . . . . . . . . . . . . . . . . . . . . . . . . Triggered 1 | . . . . . . . . . . . . . . . . . . . . 1 . . . . . . . Machines | -11 -10 -10 -9 -9 -9 -8 -8 -8 -8 -8 -6 -6 -6 -6 -5 -5 -5 -5 -5 -4 -4 -4 -4 -4 -4 -3 -3 ---------- Run | Yrd Mat Min Mat Min Exi Min Mat Sto Rec Scr Fac Low Low Dat Pro Fac Upp Upp Zhi Pro Fac Ext Cet Arc Hub Res Qua Machines Disabled 45 | . . . . . . . . 1 . . 2 . 4 . . 3 . . . . . 4 . 3 23 . 5 Max in Single Turn 11 | . . . . . . . . 1 . . 2 . 2 . . 1 . . . . . 1 . . 11 . 1 Network Hub 2 | . . . . . . . . . . . . . . . . . . . . . . . . . 2 . . Machines Repaired . | . . . . . . . . . . . . . . . . . . . . . . . . . . . . Machines Dismantled . | . . . . . . . . . . . . . . . . . . . . . . . . . . . . Machines Sabotaged . | . . . . . . . . . . . . . . . . . . . . . . . . . . . . Overloaded Fab Kills . | . . . . . . . . . . . . . . . . . . . . . . . . . . . . Hacking | -11 -10 -10 -9 -9 -9 -8 -8 -8 -8 -8 -6 -6 -6 -6 -5 -5 -5 -5 -5 -4 -4 -4 -4 -4 -4 -3 -3 --------- Run | Yrd Mat Min Mat Min Exi Min Mat Sto Rec Scr Fac Low Low Dat Pro Fac Upp Upp Zhi Pro Fac Ext Cet Arc Hub Res Qua Machines Accessed 56 | . 4 1 3 . 2 . 1 2 7 1 5 . . 4 . 2 1 . 7 . 1 4 2 1 2 6 . Terminals 30 | . 4 . 2 . . . 1 2 6 . 4 . . . . 2 . . . . . 3 2 . 2 2 . Fabricators 2 | . . . . . . . . . . . . . . . . . . . . . . . . . . 2 . Repair Stations 1 | . . . . . . . . . . . . . . . . . . . . . 1 . . . . . . Recycling Units 2 | . . . . . . . . . 1 . . . . . . . . . . . . 1 . . . . . Scanalyzers 4 | . . . 1 . . . . . . . 1 . . . . . . . . . . . . . . 2 . Garrison Access . | . . . . . . . . . . . . . . . . . . . . . . . . . . . . Total Hacks 181 | . 10 1 8 . 6 . 2 11 32 1 21 . . 29 . 5 1 . 19 . 1 9 2 1 5 17 . Successful 115 | . 5 1 5 . 6 . . 4 13 1 13 . . 29 . 2 1 . 19 . . 3 1 1 3 8 . Failed 66 | . 5 . 3 . . . 2 7 19 . 8 . . . . 3 . . . . 1 6 1 . 2 9 . Catastrophic 14 | . 2 . . . . . 1 . 3 . 2 . . . . 1 . . . . . 1 1 . 1 2 . Database Lockouts . | . . . . . . . . . . . . . . . . . . . . . . . . . . . . Manual 39 | . 8 . 1 . 1 . 2 7 3 . 9 . . . . . . . . . . 2 1 . 1 4 . Terminals 98 | . 10 . 5 . . . 2 11 31 . 16 . . . . 5 . . . . . 7 2 . 5 4 . Fabricators 3 | . . . . . . . . . . . . . . . . . . . . . . . . . . 3 . Repair Stations 1 | . . . . . . . . . . . . . . . . . . . . . 1 . . . . . . Recycling Units 3 | . . . . . . . . . 1 . . . . . . . . . . . . 2 . . . . . Scanalyzers 18 | . . . 3 . . . . . . . 5 . . . . . . . . . . . . . . 10 . Garrison Access . | . . . . . . . . . . . . . . . . . . . . . . . . . . . . Terminal Hacks 94 | . 4 1 2 . 6 . . 3 10 1 8 . . 29 . 2 1 . 19 . . 3 1 1 2 1 . Record 30 | . . . . . 5 . . . . 1 1 . . 11 . 1 . . 8 . . 1 1 1 . . . Part Schematic 22 | . . . . . . . . 1 6 . 2 . . 10 . . . . 3 . . . . . . . . Robot Schematic 6 | . . . . . . . . . 1 . . . . 5 . . . . . . . . . . . . . Robot Analysis 8 | . 2 . . . . . . 1 1 . . . . . . . . . 4 . . . . . . . . Prototype ID Bank 11 | . . . . . . . . 1 2 . 1 . . 3 . . . . 4 . . . . . . . . Open Door 2 | . . 1 . . . . . . . . . . . . . . 1 . . . . . . . . . . Open DSF 1 | . . . . . . . . . . . . . . . . . . . . . . . . . . 1 . Branch Access Points 3 | . 1 . 1 . . . . . . . 1 . . . . . . . . . . . . . . . . Alert Level 2 | . . . . . . . . . . . 1 . . . . . . . . . . . . . 1 . . Unreport Threat 1 | . . . . . . . . . . . . . . . . . . . . . . 1 . . . . . Locate Traps 7 | . 1 . 1 . . . . . . . 2 . . . . 1 . . . . . 1 . . 1 . . Derelict Proto ID Bank 1 | . . . . . 1 . . . . . . . . . . . . . . . . . . . . . . Fabricator Hacks 1 | . . . . . . . . . . . . . . . . . . . . . . . . . . 1 . Network Status 1 | . . . . . . . . . . . . . . . . . . . . . . . . . . 1 . Repair Station Hacks . | . . . . . . . . . . . . . . . . . . . . . . . . . . . . Recycling Unit Hacks 1 | . . . . . . . . . 1 . . . . . . . . . . . . . . . . . . Report Inventory 1 | . . . . . . . . . 1 . . . . . . . . . . . . . . . . . . Scanalyzer 7 | . . . 2 . . . . . . . 2 . . . . . . . . . . . . . . 3 . Insert Component 4 | . . . 1 . . . . . . . 1 . . . . . . . . . . . . . . 2 . Analyze 3 | . . . 1 . . . . . . . 1 . . . . . . . . . . . . . . 1 . Garrison Access Hacks . | . . . . . . . . . . . . . . . . . . . . . . . . . . . . Unauthorized Hacks 12 | . 1 . 1 . . . . 1 2 . 3 . . . . . . . . . . . . . 1 3 . Terminals 7 | . 1 . . . . . . 1 2 . 2 . . . . . . . . . . . . . 1 . . Track 1 | . . . . . . . . . . . . . . . . . . . . . . . . . 1 . . Botnet 6 | . 1 . . . . . . 1 2 . 2 . . . . . . . . . . . . . . . . Fabricators 1 | . . . . . . . . . . . . . . . . . . . . . . . . . . 1 . Fabnet 1 | . . . . . . . . . . . . . . . . . . . . . . . . . . 1 . Repair Stations . | . . . . . . . . . . . . . . . . . . . . . . . . . . . . Recycling Units . | . . . . . . . . . . . . . . . . . . . . . . . . . . . . Scanalyzers 4 | . . . 1 . . . . . . . 1 . . . . . . . . . . . . . . 2 . Researchers 1 | . . . . . . . . . . . . . . . . . . . . . . . . . . 1 . Extract 3 | . . . 1 . . . . . . . 1 . . . . . . . . . . . . . . 1 . Garrison Access . | . . . . . . . . . . . . . . . . . . . . . . . . . . . . Data Cores Recovered . | . . . . . . . . . . . . . . . . . . . . . . . . . . . . Used . | . . . . . . . . . . . . . . . . . . . . . . . . . . . . Hacking Detections 32 | . 4 . 2 . . . 1 3 5 . 4 . . . . 2 . . . . 1 4 1 . 1 4 . Full Trace Events 2 | . . . . . . . . . . . . . . . . . . . . . . . . . 1 1 . Feedback Events . | . . . . . . . . . . . . . . . . . . . . . . . . . . . . Feedback Blocked . | . . . . . . . . . . . . . . . . . . . . . . . . . . . . Robot Schematics Acquired 6 | . . . . . . . . . 1 . . . . 5 . . . . . . . . . . . . . Robots Built . | . . . . . . . . . . . . . . . . . . . . . . . . . . . . Authchips . | . . . . . . . . . . . . . . . . . . . . . . . . . . . . Time . | . . . . . . . . . . . . . . . . . . . . . . . . . . . . Total Robot Build Rating . | . . . . . . . . . . . . . . . . . . . . . . . . . . . . Part Schematics Acquired 31 | . . . 3 . . . . 1 6 . 4 . . 10 . . . . 3 . . . . . . 4 . Parts Built . | . . . . . . . . . . . . . . . . . . . . . . . . . . . . Authchips . | . . . . . . . . . . . . . . . . . . . . . . . . . . . . Time . | . . . . . . . . . . . . . . . . . . . . . . . . . . . . Total Part Build Rating . | . . . . . . . . . . . . . . . . . . . . . . . . . . . . Parts Repaired . | . . . . . . . . . . . . . . . . . . . . . . . . . . . . Time . | . . . . . . . . . . . . . . . . . . . . . . . . . . . . Parts Recycled . | . . . . . . . . . . . . . . . . . . . . . . . . . . . . Recycled Matter . | . . . . . . . . . . . . . . . . . . . . . . . . . . . . Retrieved Matter . | . . . . . . . . . . . . . . . . . . . . . . . . . . . . Retrieved Components . | . . . . . . . . . . . . . . . . . . . . . . . . . . . . Parts Scanalyzed 4 | . . . 1 . . . . . . . 1 . . . . . . . . . . . . . . 2 . Part Schematics Acquired 3 | . . . 1 . . . . . . . 1 . . . . . . . . . . . . . . 1 . Parts Damaged . | . . . . . . . . . . . . . . . . . . . . . . . . . . . . Bothacking | -11 -10 -10 -9 -9 -9 -8 -8 -8 -8 -8 -6 -6 -6 -6 -5 -5 -5 -5 -5 -4 -4 -4 -4 -4 -4 -3 -3 ------------ Run | Yrd Mat Min Mat Min Exi Min Mat Sto Rec Scr Fac Low Low Dat Pro Fac Upp Upp Zhi Pro Fac Ext Cet Arc Hub Res Qua Used RIF Installer . | . . . . . . . . . . . . . . . . . . . . . . . . . . . . Robots Hacked . | . . . . . . . . . . . . . . . . . . . . . . . . . . . . Non-combat . | . . . . . . . . . . . . . . . . . . . . . . . . . . . . Combat . | . . . . . . . . . . . . . . . . . . . . . . . . . . . . Robot Hacks Applied . | . . . . . . . . . . . . . . . . . . . . . . . . . . . . Relay Couplers Released . | . . . . . . . . . . . . . . . . . . . . . . . . . . . . Fabnet Peak Effective % . | . . . . . . . . . . . . . . . . . . . . . . . . . . . . Robots Rewired 24 | . . . . . . . . . . . . . . . . . . 1 . . . 23 . . . . . Allies Hacked . | . . . . . . . . . . . . . . . . . . . . . . . . . . . . Hacks Repelled . | . . . . . . . . . . . . . . . . . . . . . . . . . . . . Allies | -11 -10 -10 -9 -9 -9 -8 -8 -8 -8 -8 -6 -6 -6 -6 -5 -5 -5 -5 -5 -4 -4 -4 -4 -4 -4 -3 -3 -------- Run | Yrd Mat Min Mat Min Exi Min Mat Sto Rec Scr Fac Low Low Dat Pro Fac Upp Upp Zhi Pro Fac Ext Cet Arc Hub Res Qua Total Allies 33 | . . . . 1 . . . . . . . . . . . . . 1 . . . 26 5 . . . . Largest Group 18 | . . . . 1 . . . . . . . . . . . . . 1 . . . 16 18 16 15 . . Highest-Rated Group 1117 | . . . . 31 . . . . . . . . . . . . . 49 . . . 785 1117 974 815 . . Highest-Rated Ally 159 | . . . . 31 . . . . . . . . . . . . . 49 . . . 159 159 159 96 . . Total Orders 2 | . . . . . . . . . . . . . . . . . . . . . . . . 2 . . . ROAM 1 | . . . . . . . . . . . . . . . . . . . . . . . . 1 . . . FOLLOW 1 | . . . . . . . . . . . . . . . . . . . . . . . . 1 . . . Ally Attacks 255 | . . . . 6 . . . . . . . . . . . . . 4 . . . 106 37 15 87 . . Total Damage 6733 | . . . . 60 . . . . . . . . . . . . . 158 . . . 2625 999 419 2472 . . Kills 49 | . . . . 2 . . . . . . . . . . . . . . . . . 21 9 4 13 . . Allies Corrupted 3 | . . . . . . . . . . . . . . . . . . . . . . . . . 3 . . Allies Melted . | . . . . . . . . . . . . . . . . . . . . . . . . . . . . Intel | -11 -10 -10 -9 -9 -9 -8 -8 -8 -8 -8 -6 -6 -6 -6 -5 -5 -5 -5 -5 -4 -4 -4 -4 -4 -4 -3 -3 ------- Run | Yrd Mat Min Mat Min Exi Min Mat Sto Rec Scr Fac Low Low Dat Pro Fac Upp Upp Zhi Pro Fac Ext Cet Arc Hub Res Qua Robot Analysis Total 8 | . 2 . . . . . . 1 1 . . . . . . . . . 4 . . . . . . . . Derelict Logs Recovered 9 | . . 1 . 2 . . . . . . . 1 1 . 1 . 1 1 . 1 . . . . . . . Drone Launches . | . . . . . . . . . . . . . . . . . . . . . . . . . . . . Drone Recoveries . | . . . . . . . . . . . . . . . . . . . . . . . . . . . . Exploration | -11 -10 -10 -9 -9 -9 -8 -8 -8 -8 -8 -6 -6 -6 -6 -5 -5 -5 -5 -5 -4 -4 -4 -4 -4 -4 -3 -3 ------------- Run | Yrd Mat Min Mat Min Exi Min Mat Sto Rec Scr Fac Low Low Dat Pro Fac Upp Upp Zhi Pro Fac Ext Cet Arc Hub Res Qua Turns Passed 18479 | 67 289 302 273 574 238 203 185 481 525 886 954 401 1031 99 958 836 599 1571 254 580 735 1972 715 206 1791 1309 445 Spaces Moved 10432 | 44 176 269 188 554 330 252 133 305 489 767 638 290 789 84 528 320 379 755 154 232 268 776 241 83 506 788 94 Core 746 | 3 . . . 288 119 . . . . . . . . . . . . . . 228 108 . . . . . . Treads 803 | . . . . . . . . . . . . . . . . . . . . . . . 215 83 505 . . Legs 1845 | . . . . . . . . . . . . . . . . . . . . . 160 776 26 . 1 788 94 Wheels 7038 | 41 176 269 188 266 211 252 133 305 489 767 638 290 789 84 528 320 379 755 154 4 . . . . . . . Hover . | . . . . . . . . . . . . . . . . . . . . . . . . . . . . Flight . | . . . . . . . . . . . . . . . . . . . . . . . . . . . . Fastest Speed 50 | 50 90 105 105 50 50 80 80 95 105 115 115 125 110 110 110 145 145 140 125 125 190 190 190 240 170 100 100 Average Speed 144 | 90 100 105 112 77 69 80 93 109 105 115 124 125 124 111 155 173 145 179 155 211 230 190 235 240 239 152 169 Slowest Speed 500 | 100 105 105 140 500 80 80 95 140 115 115 125 125 125 125 195 195 145 215 170 250 300 260 260 240 240 170 170 Overloaded Moves . | . . . . . . . . . . . . . . . . . . . . . . . . . . . . Propulsion Burnouts . | . . . . . . . . . . . . . . . . . . . . . . . . . . . . Robots Hopped . | . . . . . . . . . . . . . . . . . . . . . . . . . . . . Cave-ins Triggered . | . . . . . . . . . . . . . . . . . . . . . . . . . . . . Teleports 1 | . . . . . . . . . . . . . . . . . . . . . . . . . 1 . . Exploration Rate (%) 51 | 3 35 57 31 97 69 65 15 40 93 55 20 49 72 69 77 7 65 90 62 43 6 90 73 88 49 21 14 Regions Visited 27 Branch Regions 20 Pre-discovered Areas 6 | . . 1 . . 1 . . . . . . . . 1 . . . . 3 . . . . . . . . Known Exits Taken 25 | . 1 . 1 1 1 1 1 1 1 1 1 1 1 1 1 1 1 1 1 1 1 1 1 1 1 1 . Unknown Exits Taken 2 | 1 . 1 . . . . . . . . . . . . . . . . . . . . . . . . . Scrap Searched 23 | . . 1 . 1 . 1 . . . 6 . . 3 . 4 . 1 4 . 2 . . . . . . . Spaces Dug 9 | . . . . 3 . . 3 . . . 1 . . . . 1 . . . . . . . . 1 . . Terrain Destroyed 572 | . . . . 14 . . 3 1 . . 4 5 30 . 18 6 11 16 . 9 . 20 1 . 425 6 3 Melee 4 | . . . . . . . 3 . . . 1 . . . . . . . . . . . . . . . . Projectile 184 | . . . . 3 . . . 1 . . 3 5 5 . 14 4 11 16 . 9 . 15 . . 90 6 2 AOE 384 | . . . . 11 . . . . . . . . 25 . 4 2 . . . . . 5 1 . 335 . 1 Terrain Rammed . | . . . . . . . . . . . . . . . . . . . . . . . . . . . . Walls Destroyed . | . . . . . . . . . . . . . . . . . . . . . . . . . . . . Machines Disabled . | . . . . . . . . . . . . . . . . . . . . . . . . . . . . Actions | -11 -10 -10 -9 -9 -9 -8 -8 -8 -8 -8 -6 -6 -6 -6 -5 -5 -5 -5 -5 -4 -4 -4 -4 -4 -4 -3 -3 --------- Run | Yrd Mat Min Mat Min Exi Min Mat Sto Rec Scr Fac Low Low Dat Pro Fac Upp Upp Zhi Pro Fac Ext Cet Arc Hub Res Qua Total 12780 | 64 229 290 220 634 339 253 176 420 499 772 756 309 813 89 617 579 404 895 168 277 376 1184 384 90 843 871 229 Wait 802 | . 8 11 4 20 . . 19 66 3 . 72 9 4 . 16 242 11 15 . 1 54 46 104 7 65 10 15 Move 10405 | 43 175 268 187 553 329 251 132 304 488 766 637 289 788 83 527 319 378 754 153 231 267 775 240 82 505 787 94 Hop . | . . . . . . . . . . . . . . . . . . . . . . . . . . . . Pick Up 214 | 10 8 8 5 5 5 2 7 9 . 3 9 . 2 . 10 2 2 17 3 7 10 11 9 . 46 17 7 Fast Attach 71 | . . . . 1 1 . 5 3 1 . 2 1 3 3 4 4 1 11 4 1 3 12 2 . 4 5 . Attach 154 | 7 1 . 3 10 3 . 2 . . . 7 . 1 . 12 1 1 15 . 10 8 10 4 . 36 7 16 Detach 27 | . . . . 4 1 . . . 2 . . . . . 3 . . 3 . 4 2 4 1 . 2 1 . Swap 90 | . 3 . 3 3 . . 2 7 1 . 2 . 2 . 3 1 . 9 2 2 7 8 5 1 16 8 5 Drop 150 | . . 3 3 4 . . 1 12 4 3 5 . 2 3 8 1 1 17 6 1 8 15 14 . 13 19 7 Fire 520 | 4 34 . 15 34 . . 4 14 . . 14 4 11 . 34 9 10 53 . 19 7 39 5 . 135 12 63 Melee 71 | . . . . . . . 4 5 . . 8 6 . . . . . . . 1 . . . . 21 5 21 Ram 1 | . . . . . . . . . . . . . . . . . . . . . . . . . . . 1 Kick . | . . . . . . . . . . . . . . . . . . . . . . . . . . . . Crush . | . . . . . . . . . . . . . . . . . . . . . . . . . . . . Escape Stasis 10 | . . . . . . . . . . . . . . . . . . . . . 10 . . . . . . Rewire 265 | . . . . . . . . . . . . . . . . . . 1 . . . 264 . . . . . Trap . | . . . . . . . . . . . . . . . . . . . . . . . . . . . . Miscellaneous . | . . . . . . . . . . . . . . . . . . . . . . . . . . . . Route ------- -11/Scrapyard -10/Materials (discovered 2 exits: *Min x2) -10/Mines -9/Materials -9/Mines (discovered 4 exits: *Mat x2 / *Exi / *Zio) -9/Exiles -8/Mines -8/Materials -8/Storage -8/Recycling (discovered 2 exits: *Fac / *Scr) -8/Scraptown -6/Factory (discovered 2 exits: *Low x2) -6/Lower Caves -6/Lower Caves -6/Data Miner -5/Proximity Caves -5/Factory -5/Upper Caves -5/Upper Caves (discovered 2 exits: Fac / *Zhi) -5/Zhirov -4/Proximity Caves -4/Factory -4/Extension (discovered 2 exits: *Res / *Cet) -4/Cetus (discovered 2 exits: *Res / *Arc) -4/Archives (discovered 3 exits: *Res / *Hub x2) -4/Hub_04(d) (discovered 2 exits: *Res x2) -3/Research (discovered 2 exits: *Res / *Qua) -3/Quarantine History --------- Turn | Location | Event 27 | -11/Scrapyard | Discovered new exit (range 15) 68 | -11/Scrapyard | Entered Materials 178 | -10/Materials | Core integrity fell below 50% 178 | -10/Materials | Core integrity fell below 20% 214 | -10/Materials | Identified exit to Mines 312 | -10/Materials | Build established: Mutant 357 | -10/Materials | Entered Mines 363 | -10/Mines | Met a Derelict who couldn't figure out how to use a Trap Extractor 478 | -10/Mines | Learned location of Zion (-7) 649 | -10/Mines | Discovered new exit (range 3) 659 | -10/Mines | Entered Materials 659 | -9/Materials | Evolved 2 slots: Utility x2 888 | -9/Materials | Identified exit to Mines 932 | -9/Materials | Entered Mines 963 | -9/Mines | Met a Derelict bent on vengeance 979 | -9/Mines | Learned 4 Materials zone layouts 1063 | -9/Mines | Joined a pair of Derelicts in attacking an 0b10 outpost 1207 | -9/Mines | Discovered new exit (range 6) 1249 | -9/Mines | Assembled infested the area 1338 | -9/Mines | Core integrity fell below 50% 1341 | -9/Mines | Lost 5 parts (1p2n1u1w) 1354 | -9/Mines | Core integrity fell below 20% 1357 | -9/Mines | Released all parts (3) 1384 | -9/Mines | Lost 5 parts (2p2u1w) 1410 | -9/Mines | Received a Mining Laser from a helpful Derelict 1434 | -9/Mines | Discovered new exit (range 16) 1453 | -9/Mines | Identified exit to Materials 1484 | -9/Mines | A Derelict revealed a hidden shortcut to a safe place 1486 | -9/Mines | Learned Materials emergency access door positions 1488 | -9/Mines | Identified exit to Zion 1504 | -9/Mines | Deemed a non-threat by the Exiles lab entrance 1504 | -9/Mines | Discovered new exit (range 5) 1505 | -9/Mines | Identified exit to Exiles 1506 | -9/Mines | Entered Exiles 1519 | -9/Exiles | Met 8R-AWN 1528 | -9/Exiles | Met EX-HEX 1543 | -9/Exiles | Met EX-BIN 1550 | -9/Exiles | Aligned with FarCom system 1551 | -9/Exiles | Given EX-Vault access code 1563 | -9/Exiles | Opened EX-Vault 1568 | -9/Exiles | Found Firepult 1586 | -9/Exiles | Warned to stay clear of 0b10 Research branches 1608 | -9/Exiles | Met EX-DEC 1738 | -9/Exiles | Discovered new exit (range 10) 1743 | -9/Exiles | Identified exit to Mines 1744 | -9/Exiles | Left Exiles lab with Firepult 1744 | -9/Exiles | Entered Mines 1940 | -8/Mines | Discovered exit to Materials (range 11) 1947 | -8/Mines | Entered Materials 1947 | -8/Materials | Evolved 2 slots: Utility x1, Weapon x1 1948 | -8/Materials | Identified exit to Storage 2132 | -8/Materials | Entered Storage 2515 | -8/Storage | Used back door to open Recycling access 2515 | -8/Storage | Discovered new exit (range 4) 2517 | -8/Storage | Identified exit to Recycling 2613 | -8/Storage | Entered Recycling 2616 | -8/Recycling | Build established: Skirmisher 2967 | -8/Recycling | Discovered new exit (range 15) 3103 | -8/Recycling | Scanned before Scraplab entrance 3125 | -8/Recycling | Entered Scraplab 3135 | -8/Recycling | Discovered new exit (range 2) 3135 | -8/Recycling | Identified exit to Scraptown 3138 | -8/Recycling | Entered Scraptown 3326 | -8/Scraptown | Discovered new exit (range 7) 3334 | -8/Scraptown | Identified exit to Factory 3389 | -8/Scraptown | Build established: Mutant 3433 | -8/Scraptown | Visited Comm Corps 3478 | -8/Scraptown | Visited Spacefarers 3563 | -8/Scraptown | Visited Bundlers 3631 | -8/Scraptown | Visited Junk Repository 3680 | -8/Scraptown | Turned away by UFD registrar 3700 | -8/Scraptown | Visited Cyclists 3724 | -8/Scraptown | Visited TADAMA 4024 | -8/Scraptown | Entered Factory 4024 | -6/Factory | Evolved 4 slots: Power x1, Utility x2, Weapon x1 4226 | -6/Factory | Identified exit to Lower Caves 4462 | -6/Factory | Build established: Hacker-Skirmisher 4978 | -6/Factory | Entered Lower Caves 5273 | -6/Lower Caves | Build established: Hacker-Tank 5295 | -6/Lower Caves | Encountered a Warlord checkpoint 5323 | -6/Lower Caves | Discovered new exit (range 8) 5332 | -6/Lower Caves | Identified exit to Lower Caves 5379 | -6/Lower Caves | Entered another Lower Caves area 5504 | -6/Lower Caves | Learned Factory stockpile data 5590 | -6/Lower Caves | Encountered a Warlord checkpoint 5759 | -6/Lower Caves | Discovered new exit (range 15) 5776 | -6/Lower Caves | Identified exit to Data Miner 5842 | -6/Lower Caves | Attracted the attention of an 0b10 base 5881 | -6/Lower Caves | Destroyed 7 combat bots 6410 | -6/Lower Caves | Entered Data Miner 6410 | -6/Data Miner | Discovered new exit (range 6) 6415 | -6/Data Miner | Identified exit to Proximity Caves 6434 | -6/Data Miner | Met Data Miner 6456 | -6/Data Miner | Learned location of Section 7 (-3) 6456 | -6/Data Miner | Acquired the access code to Warlord's prototype stash 6472 | -6/Data Miner | Received God Mode back door access code from Data Miner 6509 | -6/Data Miner | Entered Proximity Caves 6552 | -5/Proximity Caves | Lost 3 parts (1p1n1w) 6589 | -5/Proximity Caves | Learned 8 Factory zone layouts 6743 | -5/Proximity Caves | Lost 7 parts (1p1n2u3w) 6801 | -5/Proximity Caves | Attracted the attention of an 0b10 checkpoint 7063 | -5/Proximity Caves | Build established: Tank 7313 | -5/Proximity Caves | Received a Behemoth hack from an annoying Tinkerer 7345 | -5/Proximity Caves | Discovered new exit (range 10) 7373 | -5/Proximity Caves | Identified exit to Factory 7467 | -5/Proximity Caves | Entered Factory 7467 | -5/Factory | Evolved 2 slots: Utility x1, Weapon x1 7468 | -5/Factory | Identified exit to Upper Caves 7765 | -5/Factory | Build established: Infiltrator-Skirmisher 8303 | -5/Factory | Entered Upper Caves 8402 | -5/Upper Caves | Learned 8 Factory zone layouts 8604 | -5/Upper Caves | Build established: Infiltrator-Tank 8808 | -5/Upper Caves | Discovered new exit (range 8) 8900 | -5/Upper Caves | Identified exit to Upper Caves 8902 | -5/Upper Caves | Entered another Upper Caves area 8945 | -5/Upper Caves | Lost 3 parts (1n2w) 9132 | -5/Upper Caves | Attracted the attention of an 0b10 outpost 9204 | -5/Upper Caves | Lost 4 parts (1p1u2w) 9463 | -5/Upper Caves | Build established: Scavenger-Gunner 9477 | -5/Upper Caves | Discovered new exit (range 15) 9548 | -5/Upper Caves | Identified exit to Zhirov 9734 | -5/Upper Caves | Attracted the attention of an 0b10 checkpoint 9739 | -5/Upper Caves | Identified exit to Factory 9790 | -5/Upper Caves | Lost 5 parts (1p2u2w) 10256 | -5/Upper Caves | Build established: Derelict-Gunner 10473 | -5/Upper Caves | Entered Zhirov 10473 | -5/Zhirov | Discovered new exit (range 3) 10475 | -5/Zhirov | Identified exit to Proximity Caves 10504 | -5/Zhirov | Met Zhirov 10535 | -5/Zhirov | Learned location of Quarantine (-3) 10535 | -5/Zhirov | Learned location of Testing (-2) 10535 | -5/Zhirov | Learned location of Command (-1) 10567 | -5/Zhirov | Zhirov requested help retrieving the SGEMP Prototype 10598 | -5/Zhirov | Found Alien Artifact 10598 | -5/Zhirov | Identified Integrated Dissipator 10598 | -5/Zhirov | Installed Integrated Dissipator, increased core heat dissipation (+20) 10627 | -5/Zhirov | Found Alien Artifact 10727 | -5/Zhirov | Entered Proximity Caves 10801 | -4/Proximity Caves | Lost 9 parts (1p2n1u5w) 11307 | -4/Proximity Caves | Entered Factory 11307 | -4/Factory | Evolved 2 slots: Utility x2 11613 | -4/Factory | Build established: Derelict-Assassin 11693 | -4/Factory | Lost 3 parts (1u2w) 11994 | -4/Factory | Discovered new exit (range 10) 12010 | -4/Factory | Identified exit to Extension 12029 | -4/Factory | Build established: Scavenger-Assassin 12042 | -4/Factory | Entered Extension 12171 | -4/Extension | Rescued a captive Derelict 12345 | -4/Extension | Build established: Scavenger-Skirmisher 12499 | -4/Extension | Disrupted transfer network 12627 | -4/Extension | Spotted B-86 Titan 12636 | -4/Extension | Spotted B-86 Titan 12644 | -4/Extension | Destroyed B-86 Titan 12665 | -4/Extension | Destroyed B-86 Titan 12678 | -4/Extension | Lost 5 allies 12691 | -4/Extension | Lost 4 parts (2u2w) 12707 | -4/Extension | Destroyed 10 combat bots 12954 | -4/Extension | Lost 4 allies 13191 | -4/Extension | Rescued A7 13757 | -4/Extension | Rescued a captive Derelict 13768 | -4/Extension | Build established: Commander-Skirmisher 13946 | -4/Extension | Discovered new exit (range 10) 13948 | -4/Extension | Discovered new exit (range 6) 13980 | -4/Extension | Identified exit to Cetus 14014 | -4/Extension | Entered Cetus 14014 | -4/Cetus | Accompanied by 16 allies (A7) 14019 | -4/Cetus | Acquired a Cetus Manufacturing Module code from A7 14035 | -4/Cetus | Spotted Cetus Guard 14039 | -4/Cetus | Spotted Cetus Guard 14041 | -4/Cetus | Spotted Cetus Guard 14043 | -4/Cetus | Allies destroyed Cetus Guard 14045 | -4/Cetus | Spotted Cetus Guard 14053 | -4/Cetus | Destroyed Cetus Guard 14057 | -4/Cetus | Allies destroyed Cetus Guard 14065 | -4/Cetus | Allies destroyed Cetus Guard 14087 | -4/Cetus | Lost 3 allies 14220 | -4/Cetus | Started Cetus Manufacturing Module 14245 | -4/Cetus | Manufactured an Enhanced Grunt 14270 | -4/Cetus | Manufactured an Enhanced Grunt 14295 | -4/Cetus | Manufactured an Enhanced Grunt 14320 | -4/Cetus | Manufactured an Enhanced Grunt 14345 | -4/Cetus | Manufactured an Enhanced Grunt 14375 | -4/Cetus | Discovered new exit (range 21) 14423 | -4/Cetus | Identified exit to Archives 14480 | -4/Cetus | Spotted Cetus Guard 14480 | -4/Cetus | Spotted Cetus Guard 14482 | -4/Cetus | Spotted Cetus Guard 14488 | -4/Cetus | Destroyed Cetus Guard 14488 | -4/Cetus | Spotted Cetus Guard 14490 | -4/Cetus | Allies destroyed Cetus Guard 14492 | -4/Cetus | Allies destroyed Cetus Guard 14493 | -4/Cetus | Discovered new exit (range 22) 14498 | -4/Cetus | Allies destroyed Cetus Guard 14520 | -4/Cetus | Met Revision 17 14729 | -4/Cetus | Entered Archives 14729 | -4/Archives | Accompanied by 16 allies (A7) 14802 | -4/Archives | Unable to access archive contents 14814 | -4/Archives | Discovered new exit (range 22) 14826 | -4/Archives | Unable to access archive contents 14838 | -4/Archives | Discovered new exit (range 22) 14852 | -4/Archives | Unable to access archive contents 14864 | -4/Archives | Discovered new exit (range 21) 14876 | -4/Archives | Unable to access archive contents 14914 | -4/Archives | Identified exit to Hub_04(d) 14935 | -4/Archives | Entered Hub_04(d) 14935 | -4/Hub_04(d) | Accompanied by 15 allies 15100 | -4/Hub_04(d) | Network Hub disabled 15105 | -4/Hub_04(d) | Spotted Lightning 15107 | -4/Hub_04(d) | Spotted Lightning 15107 | -4/Hub_04(d) | Spotted Lightning 15136 | -4/Hub_04(d) | Spotted Lightning 15136 | -4/Hub_04(d) | Spotted Lightning 15146 | -4/Hub_04(d) | Lost 10 allies 15174 | -4/Hub_04(d) | Discovered new exit (range 20) 15205 | -4/Hub_04(d) | Spotted Lightning 15211 | -4/Hub_04(d) | Destroyed Lightning 15227 | -4/Hub_04(d) | Destroyed Lightning 15234 | -4/Hub_04(d) | Destroyed Lightning 15244 | -4/Hub_04(d) | Garrison activated, responded to threat 15261 | -4/Hub_04(d) | Identified exit to Research 15268 | -4/Hub_04(d) | Destroyed 14 combat bots 15282 | -4/Hub_04(d) | Found Prototype Energy Cannon 15283 | -4/Hub_04(d) | Identified EMDS 15295 | -4/Hub_04(d) | Found Prototype Device 15295 | -4/Hub_04(d) | Identified Exp. Phase Shifter 15402 | -4/Hub_04(d) | Build established: Scavenger-Tank 15597 | -4/Hub_04(d) | System corruption reached 10% 15615 | -4/Hub_04(d) | Identified Transdimensional Reconstructor 15615 | -4/Hub_04(d) | Warped through subspace 15672 | -4/Hub_04(d) | Lost 3 parts (1p2w) 15720 | -4/Hub_04(d) | Lost 3 parts (1u2w) 15877 | -4/Hub_04(d) | Discovered exit to Research (range 5) 15935 | -4/Hub_04(d) | First assault squad dispatched 15946 | -4/Hub_04(d) | Build established: Scavenger-Assassin 16174 | -4/Hub_04(d) | Lost 4 parts (1n3w) 16493 | -4/Hub_04(d) | Core integrity fell below 50% 16707 | -4/Hub_04(d) | Network Hub disabled 16726 | -4/Hub_04(d) | Entered Research 16726 | -3/Research | Evolved 2 slots: Propulsion x2 16751 | -3/Research | Build established: Scavenger-Tank 16785 | -3/Research | Discovered new exit (range 6) 16789 | -3/Research | Identified exit to Research 16926 | -3/Research | Revision forces began assault on 0b10 16959 | -3/Research | Met up with Revision 17++ 17426 | -3/Research | Research terminal network offline 17576 | -3/Research | Spotted B-86 Titan 17785 | -3/Research | Discovered new exit (range 21) 17821 | -3/Research | Identified exit to Quarantine 17933 | -3/Research | Found Fusion Bomb Launcher 17950 | -3/Research | Spotted Striker 18035 | -3/Research | Entered Quarantine 18036 | -3/Quarantine | Maximum security lockdown engaged 18190 | -3/Quarantine | Met incapacitated Sigix Warrior 18190 | -3/Quarantine | Lockdown squad dispatched 18215 | -3/Quarantine | Found Sigix Containment Pod 18255 | -3/Quarantine | System corruption reached 10% 18327 | -3/Quarantine | Spotted Lightning 18334 | -3/Quarantine | Spotted Lightning 18337 | -3/Quarantine | Spotted Lightning 18355 | -3/Quarantine | Destroyed 15 combat bots 18376 | -3/Quarantine | Spotted Investigator 18395 | -3/Quarantine | Lost 16 parts (2p9u5w) 18464 | -3/Quarantine | Core integrity fell below 50% 18479 | -3/Quarantine | Core integrity fell below 20% 18480 | -3/Quarantine | Destroyed by G-73 Enforcer with Phase Gun Last Messages --------------- I-47 Archangel unfolds itself. C-30 ARC bursts open, deploying its payload. H-77 Assassin unfolds itself. P-80 Master unfolds itself. C-30 ARC bursts open, deploying its payload. Striker unfolds itself. P-80 Master unfolds itself. I-47 Archangel unfolds itself. Penetrated by Slug. E-15 Imp destroyed. C-30 ARC bursts open, deploying its payload. G-73 Enforcer unfolds itself. B-74 Champion unfolds itself. G-67 Veteran unfolds itself. System corrupted: Matter fused (-6). Penetrated by Slug. Slug penetrates P-80 Master. Penetrated by Slug. Slug penetrates P-80 Master. [Achievement: Overachiever] Map ----- +----------------------------------------------------+ | | | | | | | | | | | | | | | | | | | | | | | | | | | | | | | ????????????????????????????????? | | ????????????????????????????????? | | ????????????????????????????????? | | ????????????????????????????????? | | ????###########?????????????????? | | ????#"""""""""#?????????????????? | | ????#" """""""#?????????????????? | | ????#!="ggi"""#?????????????????? | | ????#[=g""" ""#?????????????????? | | ????#!gp"e" ""#?????????????????? | | ????#=g=@""g""#?????????????????? | | ????#lhggh="""#?????????????????? | | ????#*bggele "#?????????????????? | | ????#=%gglg! "#?????????????????? | | ????####c"g####?????????????????? | | ??????#Tbg i????????????????????? | | ??????##ggg##???????##??????????? | | ???????#lgh#?????? #??????????? | | ???????#bhg#???? """"#??????????? | | ?i????ipKpl#?? """"#??????????? | | ???????#hpe# """"#??????????? | | ???????#pKpe ! """"#??????????? | | ???????#g h# #??????????? | | ???????#gmg#?? !#??????????? | | ???????#biC#???? #??????????? | | ?????###CC #??????####??????????? | | ?????#"" #????????????????????? | | ?????#T #????????????????????? | | ?????### "#????????????????????? | | ???????# "%#????????????????????? | | ???????# "#????????????????????? | | ???????# "%#????????????????????? | | ???????# "#????????????????????? | | ???????# #????????????????????? | | ???????# #????????????????????? | +----------------------------------------------------+ Best States ------------- Heat Dissipation 120 Coolant Potential 65 Energy Generation 53 Energy Capacity 1080 Matter Stores 300 Matter Capacity 300 Sight Range 22 Terrain Scan Range 16 Terrain Scan Density 10 Jamming Range 16 Additional Mass Support 9 Corruption Block 12 Armor Coverage 1650 Resistance: KI 25 Resistance: TH 30 Weapon Cycling 20 Phase Shifting 20 Evasion (%) 60 Targeting Accuracy 6 Core Analysis 6 Armor Integrity Analysis 30 Recoil Reduction 2 Particle Charging 30 Offensive Hacking 14 Defensive Hacking 10 Item Schematics ----------------- Imp. Trap Extractor | -9/Materials | Scanalyzed Hover Unit | -9/Materials | Extracted VTOL Module | -9/Materials | Extracted System Guard | -8/Storage | Hacked Hvy. Particle Cannon | -8/Recycling | Hacked Adv. Terrain Scan Processor | -8/Recycling | Hacked Imp. VSS Leg | -8/Recycling | Hacked Scythe | -8/Recycling | Hacked Gauss Cannon | -8/Recycling | Hacked Kinecellerator | -8/Recycling | Hacked Gyrokinetic Inverter | -6/Factory | Hacked Force Lance | -6/Factory | Hacked Transmission Jammer | -6/Factory | Scanalyzed Imp. Heavy Laser | -6/Factory | Extracted Combat Drone Bay | -6/Data Miner | Free Lgt. Regenerative Plating | -6/Data Miner | Free Enh. Armored Leg | -6/Data Miner | Free Exp. Heat Sink | -6/Data Miner | Free Hvy. Gatling Laser | -6/Data Miner | Free Field Propulsion Array | -6/Data Miner | Free Graphene Brace | -6/Data Miner | Free Micro-nuke Launcher | -6/Data Miner | Free Imp. Shock Absorption System | -6/Data Miner | Free Adv. Recalibrator | -6/Data Miner | Free Assault Drone Bay | -5/Zhirov | Free Exp. Optical Array | -5/Zhirov | Free Imp. Arc Thrower | -5/Zhirov | Free Energy Mantle | -3/Research | Scanalyzed Adv. Component Analysis Suite | -3/Research | Extracted Imp. Thermal Shield | -3/Research | Extracted Imp. Armor Integrity Analyzer | -3/Research | Extracted Robot Schematics ------------------ T-07 Excavator | -8/Recycling | Hacked S-27 Virus | -6/Data Miner | Free A-15 Conveyor | -6/Data Miner | Free L-41 Fighter | -6/Data Miner | Free R-10 Processor | -6/Data Miner | Free Y-64 Sentinel | -6/Data Miner | Free Fabricated ------------ Nothing Alien Tech Used ----------------- Integrated Dissipator Transdimensional Reconstructor Achievements -------------- False Reunion Overachiever Pyromaniac Revolutionary Research Challenges ------------ None Game ------ Seed InertialIonicSpear Manual? 0 Play Time 04:17:00 Cumulative 151.0 hours Start 2024.08.13 @ 23:20:41 End 2024.08.14 @ 20:30:47 Sessions 7 Manual Loads 0 Difficulty Rogue Special Mode None Game No. 143 Rogue 134 Adventurer 9 Explorer 0 Win Type - Total 0 Types 0/0/0/0/0/0/0/0/0 Lore% 59 Gallery% 63 Achievement% 51 Wizard Run 0 Options --------- Layout 1 ASCII 0 Keyboard 0 Movement Numpad Keybinds 0 Fullscreen 1 Font 24/Smallcaps Map View 50x35 Zoom Use 0% Tactical HUD 0 Map Filters NONE Filters NONE Steam 1 RUN: 9316bf1f-e637-4cb4-9383-ce72f024a078